{"text_format":"1","workbook":"xlsx","n_sheets":6,"sheets":["Priesthood","Sunday School","Manuals","Class Members","Lesson Number","Other Info"],"not_rendered":{"charts":0,"images":0,"macros":1,"external_links":0,"defined_names":0,"comments":0,"pivot_tables":0},"unopened":[],"bounds":{"document_bytes":16777216,"sheet_cells":100000,"rows_first":2000,"rows_last":500,"rows_between":2000,"halvings":0,"cell_chars":16384,"cell_head_chars":4096},"cells_cut":0,"cells_raw":0,"read":"whole","date_system":"1900"}

{"sheet":"Priesthood","index":0,"n_rows":145,"n_cols":5,"rows_kept":145,"cut":false,"hidden":false,"merged":[]}
["The Church of Jesus Christ of Latter-day Saints"]
[]
["Sign In"]
["Languages"]
[]
[" Global Lds.org"]
[]
["English | EN"]
["Espa񯬠| Spanish"]
["Deutsch | German"]
["Portugu고| Portuguese"]
[]
["Italiano | Italian"]
["Fran硩s | French"]
["See Other Languages on LDS.org"]
[]
[]
["Menu "]
["Tools "]
[]
["Manuals"]
[]
[]
[]
["Melchizedek Priesthood"]
["Relief Society"]
["Aaronic Priesthood"]
["Young Women"]
["Primary"]
["Sunday School"]
["Optional Courses"]
["Seminary"]
["Institute"]
["Search"]
[]
["Home"]
["LDS.org"]
[]
["Manuals"]
["Gospel Principles"]
[]
["Gospel Principles"]
[]
[]
[]
["On second and third Sundays in 2010, Melchizedek Priesthood and Relief Society classes will use Gospel Principles, which is available in multiple media formats. For other Sundays in the month, additional resources are available."]
[]
["Select Another Language"]
[]
["Deutsch (Deutsch)"]
["English (English)"]
["Espa񯬠(Espa񯬩"]
["Fran硩s (Fran硩s)"]
["Italiano (Italiano)"]
["Portugu고(Portugu곩"]
["??????? (???????)"]
[]
["Chapter","Title","Page","Listen","Download"]
["Entire Manual",null,null,null,"PDFAudio MP3"]
[]
["Chapter 1","Our Heavenly Father",47,"Listen","PDFAudio MP3"]
["Chapter 2","Our Heavenly Family",812,"Listen","PDFAudio MP3"]
["Chapter 3","Jesus Christ, Our Chosen Leader and Savior",1316,"Listen","PDFAudio MP3"]
["Chapter 4","Freedom to Choose",1721,"Listen","PDFAudio MP3"]
["Chapter 5","The Creation",2225,"Listen","PDFAudio MP3"]
["Chapter 6","The Fall of Adam and Eve",2630,"Listen","PDFAudio MP3"]
["Chapter 7","The Holy Ghost",3133,"Listen","PDFAudio MP3"]
["Chapter 8","Praying to Our Heavenly Father",3438,"Listen","PDFAudio MP3"]
["Chapter 9","Prophets of God",3943,"Listen","PDFAudio MP3"]
["Chapter 10","Scriptures",4449,"Listen","PDFAudio MP3"]
["Chapter 11","The Life of Christ",5058,"Listen","PDFAudio MP3"]
["Chapter 12","The Atonement",5966,"Listen","PDFAudio MP3"]
["Chapter 13","The Priesthood",6771,"Listen","PDFAudio MP3"]
["Chapter 14","Priesthood Organization",7280,"Listen","PDFAudio MP3"]
["Chapter 15","The Lords Covenant People",8186,"Listen","PDFAudio MP3"]
["Chapter 16","The Church of Jesus Christ in Former Times",8793,"Listen","PDFAudio MP3"]
["Chapter 17","The Church of Jesus Christ Today",94100,"Listen","PDFAudio MP3"]
["Chapter 18","Faith in Jesus Christ",1016,"Listen","PDFAudio MP3"]
["Chapter 19","Repentance",10713,"Listen","PDFAudio MP3"]
["Chapter 20","Baptism",11419,"Listen","PDFAudio MP3"]
["Chapter 21","The Gift of the Holy Ghost",12024,"Listen","PDFAudio MP3"]
["Chapter 22","The Gifts of the Spirit",12532,"Listen","PDFAudio MP3"]
["Chapter 23","The Sacrament",13337,"Listen","PDFAudio MP3"]
["Chapter 24","The Sabbath Day",13843,"Listen","PDFAudio MP3"]
["Chapter 25","Fasting",14448,"Listen","PDFAudio MP3"]
["Chapter 26","Sacrifice",14954,"Listen","PDFAudio MP3"]
["Chapter 27","Work and Personal Responsibility",15560,"Listen","PDFAudio MP3"]
["Chapter 28","Service",16166,"Listen","PDFAudio MP3"]
["Chapter 29","The Lords Law of Health",16772,"Listen","PDFAudio MP3"]
["Chapter 30","Charity",17378,"Listen","PDFAudio MP3"]
["Chapter 31","Honesty",17983,"Listen","PDFAudio MP3"]
["Chapter 32","Tithes and Offerings",18488,"Listen","PDFAudio MP3"]
["Chapter 33","Missionary Work",18995,"Listen","PDFAudio MP3"]
["Chapter 34","Developing Our Talents",19699,"Listen","PDFAudio MP3"]
["Chapter 35","Obedience",200206,"Listen","PDFAudio MP3"]
["Chapter 36","The Family Can Be Eternal",20711,"Listen","PDFAudio MP3"]
["Chapter 37","Family Responsibilities",21217,"Listen","PDFAudio MP3"]
["Chapter 38","Eternal Marriage",21823,"Listen","PDFAudio MP3"]
["Chapter 39","The Law of Chastity",22432,"Listen","PDFAudio MP3"]
["Chapter 40","Temple Work and Family History",23339,"Listen","PDFAudio MP3"]
["Chapter 41","The Postmortal Spirit World",24044,"Listen","PDFAudio MP3"]
["Chapter 42","The Gathering of the House of Israel",24550,"Listen","PDFAudio MP3"]
["Chapter 43","Signs of the Second Coming",25156,"Listen","PDFAudio MP3"]
["Chapter 44","The Second Coming of Jesus Christ",25762,"Listen","PDFAudio MP3"]
["Chapter 45","The Millennium",26367,"Listen","PDFAudio MP3"]
["Chapter 46","The Final Judgment",26874,"Listen","PDFAudio MP3"]
["Chapter 47","Exaltation",27580,"Listen","PDFAudio MP3"]
[null,"List of Visuals",281,null,"PDF"]
[null,"Index",283,null,"PDF"]
["  Do You Have Feedback about This Page?"]
[]
["Go to Classic LDS.org"]
[]
["Help and Feedback"]
[]
["Help "]
["\"Learn About...\" Videos "]
["Frequently Asked Questions "]
["Submit Feedback "]
[]
["Featured and Most Visited"]
[]
["Mormon Tabernacle Choir "]
["Giving to the Church "]
["LDS Family Services "]
["Combating Pornography "]
[]
["Prophets and Apostles Speak Today "]
["Latest General Conference "]
["Scriptures "]
["Church News and Events "]
[]
["Ward and Stake Websites (Classic) "]
["Manuals "]
["Youth "]
["For the Strength of Youth "]
[]
["Resources"]
[]
["Church Employment Opportunities "]
["Share the Gospel Online "]
["Ward and Stake Calendar "]
["Ward and Stake Directory "]
[]
["2011 Intellectual Reserve, Inc. All rights reserved.  Terms of Use Privacy Policy"]

{"sheet":"Sunday School","index":1,"n_rows":145,"n_cols":5,"rows_kept":145,"cut":false,"hidden":false,"merged":[]}
["The Church of Jesus Christ of Latter-day Saints"]
[]
["Sign In"]
["Languages"]
[]
[" Global Lds.org"]
[]
["English | EN"]
["Espa񯬠| Spanish"]
["Deutsch | German"]
["Portugu고| Portuguese"]
[]
["Italiano | Italian"]
["Fran硩s | French"]
["See Other Languages on LDS.org"]
[]
[]
["Menu "]
["Tools "]
[]
["Manuals"]
[]
[]
[]
["Melchizedek Priesthood"]
["Relief Society"]
["Aaronic Priesthood"]
["Young Women"]
["Primary"]
["Sunday School"]
["Optional Courses"]
["Seminary"]
["Institute"]
["Search"]
[]
["Home"]
["LDS.org"]
[]
["Manuals"]
["Old Testament Class Member Study Guide"]
[]
["Old Testament Class Member Study Guide"]
[]
[]
[]
["        "]
["Select Another Language"]
[]
["Deutsch (Deutsch)"]
["English (English)"]
["Espa񯬠(Espa񯬩"]
["Fran硩s (Fran硩s)"]
["Italiano (Italiano)"]
["Portugu고(Portugu곩"]
["??????? (???????)"]
[]
["Chapter","Title","Page","Listen","Download"]
["Entire Manual",null,null,null,"PDF"]
[]
[null,"Old Testament"]
[null,"Foreword",2,null,"PDF"]
["Lesson 1","This Is My Work and My Glory",23,null,"PDF"]
["Lesson 2","Thou Wast Chosen Before Thou Wast Born",3,null,"PDF"]
["Lesson 3","The Creation",34,null,"PDF"]
["Lesson 4","Because of My Transgression My Eyes Are Opened",4,null,"PDF"]
["Lesson 5","If Thou Doest Well, Thou Shalt Be Accepted",45,null,"PDF"]
["Lesson 6","Noah Prepared an Ark to the Saving of His House",5,null,"PDF"]
["Lesson 7","The Abrahamic Covenant",6,null,"PDF"]
["Lesson 8","Living Righteously in a Wicked World",6,null,"PDF"]
["Lesson 9","God Will Provide Himself a Lamb",7,null,"PDF"]
["Lesson 10","Birthright Blessings; Marriage in the Covenant",78,null,"PDF"]
["Lesson 11","How Can I Do This Great Wickedness?",8,null,"PDF"]
["Lesson 12","Fruitful in the Land of My Affliction",89,null,"PDF"]
["Lesson 13","Bondage, Passover, and Exodus",9,null,"PDF"]
["Lesson 14","Ye Shall Be a Peculiar Treasure unto Me",10,null,"PDF"]
["Lesson 15","Look to God and Live",1011,null,"PDF"]
["Lesson 16","I Cannot Go Beyond the Word of the Lord",1112,null,"PDF"]
["Lesson 17","Beware Lest Thou Forget",12,null,"PDF"]
["Lesson 18","Be Strong and of a Good Courage",13,null,"PDF"]
["Lesson 19","The Reign of the Judges",1314,null,"PDF"]
["Lesson 20","All the City Doth Know That Thou Art a Virtuous Woman",14,null,"PDF"]
["Lesson 21","God Will Honor Those Who Honor Him",1415,null,"PDF"]
["Lesson 22","The Lord Looketh on the Heart",15,null,"PDF"]
["Lesson 23","The Lord Be Between Thee and Me For Ever",16,null,"PDF"]
["Lesson 24","Create in Me a Clean Heart",1617,null,"PDF"]
["Lesson 25","Let Every Thing That Hath Breath Praise the Lord",17,null,"PDF"]
["Lesson 26","King Solomon: Man of Wisdom, Man of Foolishness",18,null,"PDF"]
["Lesson 27","The Influence of Wicked and Righteous Leaders",1819,null,"PDF"]
["Lesson 28","After the Fire a Still Small Voice",1920,null,"PDF"]
["Lesson 29","He Took Up the Mantle of Elijah",20,null,"PDF"]
["Lesson 30","Come to the House of the Lord",2021,null,"PDF"]
["Lesson 31","Happy Is the Man That Findeth Wisdom",2122,null,"PDF"]
["Lesson 32","I Know That My Redeemer Liveth",22,null,"PDF"]
["Lesson 33","Sharing the Gospel with the World",2223,null,"PDF"]
["Lesson 34","I Will Betroth Thee unto Me in Righteousness",23,null,"PDF"]
["Lesson 35","God Reveals His Secrets to His Prophets",2324,null,"PDF"]
["Lesson 36","The Glory of Zion Will Be a Defense",24,null,"PDF"]
["Lesson 37","Thou Hast Done Wonderful Things",2425,null,"PDF"]
["Lesson 38","Beside Me There Is No Saviour",25,null,"PDF"]
["Lesson 39","How Beautiful upon the Mountains",2526,null,"PDF"]
["Lesson 40","Enlarge the Place of Thy Tent",26,null,"PDF"]
["Lesson 41","I Have Made Thee This Day an Iron Pillar",26,null,"PDF"]
["Lesson 42","I Will Write It in Their Hearts",27,null,"PDF"]
["Lesson 43","The Shepherds of Israel",27,null,"PDF"]
["Lesson 44","Every Thing Shall Live Whither the River Cometh",28,null,"PDF"]
["Lesson 45","If I Perish, I Perish",2829,null,"PDF"]
["Lesson 46","A Kingdom, Which Shall Never Be Destroyed",29,null,"PDF"]
["Lesson 47","Let Us Rise Up and Build",30,null,"PDF"]
["Lesson 48","The Great and Dreadful Day of the Lord",31,null,"PDF"]
["  Do You Have Feedback about This Page?"]
[]
["Go to Classic LDS.org"]
[]
["Help and Feedback"]
[]
["Help "]
["\"Learn About...\" Videos "]
["Frequently Asked Questions "]
["Submit Feedback "]
[]
["Featured and Most Visited"]
[]
["Mormon Tabernacle Choir "]
["Giving to the Church "]
["LDS Family Services "]
["Combating Pornography "]
[]
["Prophets and Apostles Speak Today "]
["Latest General Conference "]
["Scriptures "]
["Church News and Events "]
[]
["Ward and Stake Websites (Classic) "]
["Manuals "]
["Youth "]
["For the Strength of Youth "]
[]
["Resources"]
[]
["Church Employment Opportunities "]
["Share the Gospel Online "]
["Ward and Stake Calendar "]
["Ward and Stake Directory "]
[]
["2011 Intellectual Reserve, Inc. All rights reserved.  Terms of Use Privacy Policy"]

{"sheet":"Manuals","index":2,"n_rows":5,"n_cols":5,"rows_kept":5,"cut":false,"hidden":false,"merged":[]}
["Class","Manual","Combined",0,"Old Testament"]
["Sunday School","Old Testament","Sunday School, Old Testament"]
["Sunday School","New Testament","Sunday School, New Testament"]
["Sunday School","Doctrine and Covenants and Church History","Sunday School, Doctrine and Covenants and Church History"]
["Sunday School","Book of Mormon","Sunday School, Book of Mormon"]

{"sheet":"Class Members","index":3,"n_rows":96,"n_cols":7,"rows_kept":96,"cut":false,"hidden":false,"merged":[]}
["First Name","Last Name","Email Address","Phone Number","Contact Preference","Classes","Info"]
["Trevor","McEwen","mctrev@gmail.com",8013626729,"Phone","Priesthood, Gospel Principles","Trevor\tMcEwen\tmctrev@gmail.com\t8013626729\tPhone\tPriesthood, Gospel Principles"]
["Kayla","McEwen","kaylalam@gmail.com",8013626738,"Email","Sunday School, Relief Society","Kayla\tMcEwen\tkaylalam@gmail.com\t8013626738\tEmail\tSunday School, Relief Society"]
["Trey","McEwen","Bologna@me.com",8017090302,"Email","Sunday School","Trey\tMcEwen\tBologna@me.com\t8017090302\tEmail\tSunday School"]
["Trevor","John","muhkjeun@yahoo.com",8013626738,"Email",null,"Trevor\tJohn\tmuhkjeun@yahoo.com\t8013626738\tEmail\t"]
[null,null,null,null,null,{"$f":"IF(A6>\"\",A6&\" \"&B6&\" ,\"&C6&\", \"&D6&\" ,\"&E6,\"\")","v":""}]
[null,null,null,null,null,""]
[null,null,null,null,null,""]
[null,null,null,null,null,""]
[null,null,null,null,null,""]
[null,null,null,null,null,""]
[null,null,null,null,null,""]
[null,null,null,null,null,""]
[null,null,null,null,null,""]
[null,null,null,null,null,""]
[null,null,null,null,null,""]
[null,null,null,null,null,""]
[null,null,null,null,null,""]
[null,null,null,null,null,""]
[null,null,null,null,null,""]
[null,null,null,null,null,""]
[null,null,null,null,null,""]
[null,null,null,null,null,""]
[null,null,null,null,null,""]
[null,null,null,null,null,""]
[null,null,null,null,null,""]
[null,null,null,null,null,""]
[null,null,null,null,null,""]
[null,null,null,null,null,""]
[null,null,null,null,null,""]
[null,null,null,null,null,""]
[null,null,null,null,null,""]
[null,null,null,null,null,""]
[null,null,null,null,null,""]
[null,null,null,null,null,""]
[null,null,null,null,null,""]
[null,null,null,null,null,""]
[null,null,null,null,null,""]
[null,null,null,null,null,""]
[null,null,null,null,null,""]
[null,null,null,null,null,""]
[null,null,null,null,null,""]
[null,null,null,null,null,""]
[null,null,null,null,null,""]
[null,null,null,null,null,""]
[null,null,null,null,null,""]
[null,null,null,null,null,""]
[null,null,null,null,null,""]
[null,null,null,null,null,""]
[null,null,null,null,null,""]
[null,null,null,null,null,""]
[null,null,null,null,null,""]
[null,null,null,null,null,""]
[null,null,null,null,null,""]
[null,null,null,null,null,""]
[null,null,null,null,null,""]
[null,null,null,null,null,""]
[null,null,null,null,null,""]
[null,null,null,null,null,""]
[null,null,null,null,null,""]
[null,null,null,null,null,""]
[null,null,null,null,null,{"$f":"IF(A62>\"\",A62&\" \"&B62&\" ,\"&C62&\", \"&D62&\" ,\"&E62,\"\")","v":""}]
[null,null,null,null,null,""]
[null,null,null,null,null,""]
[null,null,null,null,null,""]
[null,null,null,null,null,""]
[null,null,null,null,null,""]
[null,null,null,null,null,""]
[null,null,null,null,null,""]
[null,null,null,null,null,""]
[null,null,null,null,null,""]
[null,null,null,null,null,""]
[null,null,null,null,null,""]
[null,null,null,null,null,""]
[null,null,null,null,null,""]
[null,null,null,null,null,""]
[null,null,null,null,null,""]
[null,null,null,null,null,""]
[null,null,null,null,null,""]
[null,null,null,null,null,""]
[null,null,null,null,null,""]
[null,null,null,null,null,""]
[null,null,null,null,null,""]
[null,null,null,null,null,""]
[null,null,null,null,null,""]
[null,null,null,null,null,""]
[null,null,null,null,null,""]
[null,null,null,null,null,""]
[null,null,null,null,null,""]
[null,null,null,null,null,""]
[null,null,null,null,null,""]
[null,null,null,null,null,""]
[null,null,null,null,null,""]
[null,null,null,null,null,""]
[null,null,null,null,null,""]
[null,null,null,null,null,{"$f":"IF(A96>\"\",A96&\" \"&B96&\" ,\"&C96&\", \"&D96&\" ,\"&E96,\"\")","v":""}]

{"sheet":"Lesson Number","index":4,"n_rows":55,"n_cols":4,"rows_kept":55,"cut":false,"hidden":false,"merged":[]}
[{"$f":"YEAR(TODAY())","v":2011}]
["Date","Sunday School Lesson","Priesthood and Relief Society Lesson","Gospel Principles Lesson"]
[{"$f":"DATE($A$1,1,1)+IF(1<WEEKDAY(DATE($A$1,1,1)),7-WEEKDAY(DATE($A$1,1,1))+1,1-WEEKDAY(DATE($A$1,1,1)))","v":"2011-01-02"},"Lesson 1, This Is My Work and My Glory"]
[{"$f":"IF(YEAR(A3+7)>$A$1,\"\",A3+7)","v":"2011-01-09"},"Lesson 2, Thou Wast Chosen Before Thou Wast Born","Chapter 25, Fasting"]
[{"$f":"IF(YEAR(A4+7)>$A$1,\"\",A4+7)","v":"2011-01-16"},"Lesson 3, The Creation","Chapter 26, Sacrifice"]
["2011-01-23","Lesson 4, Because of My Transgression My Eyes Are Opened"]
["2011-01-30","Lesson 5, If Thou Doest Well, Thou Shalt Be Accepted"]
["2011-02-06"]
["2011-02-13","Lesson 6, Noah Prepared an Ark to the Saving of His House","Chapter 27, Work and Personal Responsibility"]
["2011-02-20","Lesson 7, The Abrahamic Covenant","Chapter 28, Service"]
["2011-02-27","Lesson 8, Living Righteously in a Wicked World"]
["2011-03-06","Lesson 9, God Will Provide Himself a Lamb"]
["2011-03-13","Lesson 10, Birthright Blessings; Marriage in the Covenant","Chapter 29, The Lords Law of Health"]
["2011-03-20","Lesson 11, How Can I Do This Great Wickedness?","Chapter 30, Charity"]
["2011-03-27","Lesson 12, Fruitful in the Land of My Affliction"]
["2011-04-03"]
["2011-04-10","Lesson 13, Bondage, Passover, and Exodus","Chapter 31, Honesty"]
["2011-04-17","Lesson 14, Ye Shall Be a Peculiar Treasure unto Me","Chapter 32, Tithes and Offerings"]
["2011-04-24","Lesson 15, Look to God and Live"]
["2011-05-01","Lesson 16, I Cannot Go Beyond the Word of the Lord"]
["2011-05-08","Lesson 17, Beware Lest Thou Forget","Chapter 33, Missionary Work"]
["2011-05-15","Lesson 18, Be Strong and of a Good Courage","Chapter 34, Developing Our Talents"]
["2011-05-22","Lesson 19, The Reign of the Judges"]
["2011-05-29","Lesson 20, All the City Doth Know That Thou Art a Virtuous Woman"]
["2011-06-05","Lesson 21, God Will Honor Those Who Honor Him"]
["2011-06-12","Lesson 22, The Lord Looketh on the Heart","Chapter 35, Obedience"]
["2011-06-19","Lesson 23, The Lord Be Between Thee and Me For Ever","Chapter 36, The Family Can Be Eternal"]
["2011-06-26","Lesson 24, Create in Me a Clean Heart"]
["2011-07-03","Lesson 25, Let Every Thing That Hath Breath Praise the Lord"]
["2011-07-10","Lesson 26, King Solomon: Man of Wisdom, Man of Foolishness","Chapter 37, Family Responsibilities"]
["2011-07-17","Lesson 27, The Influence of Wicked and Righteous Leaders","Chapter 38, Eternal Marriage"]
["2011-07-24","Lesson 28, After the Fire a Still Small Voice"]
["2011-07-31","Lesson 29, He Took Up the Mantle of Elijah"]
["2011-08-07","Lesson 30, Come to the House of the Lord"]
["2011-08-14","Lesson 31, Happy Is the Man That Findeth Wisdom","Chapter 39, The Law of Chastity"]
["2011-08-21","Lesson 32, I Know That My Redeemer Liveth","Chapter 40, Temple Work and Family History"]
["2011-08-28","Lesson 33, Sharing the Gospel with the World"]
["2011-09-04","Lesson 34, I Will Betroth Thee unto Me in Righteousness"]
["2011-09-11","Lesson 35, God Reveals His Secrets to His Prophets","Chapter 41, The Postmortal Spirit World"]
["2011-09-18","Lesson 36, The Glory of Zion Will Be a Defense","Chapter 42, The Gathering of the House of Israel"]
["2011-09-25","Lesson 37, Thou Hast Done Wonderful Things"]
["2011-10-02"]
["2011-10-09","Lesson 38, Beside Me There Is No Saviour","Chapter 43, Signs of the Second Coming"]
["2011-10-16","Lesson 39, How Beautiful upon the Mountains","Chapter 44, The Second Coming of Jesus Christ"]
["2011-10-23","Lesson 40, Enlarge the Place of Thy Tent"]
["2011-10-30","Lesson 41, I Have Made Thee This Day an Iron Pillar"]
["2011-11-06","Lesson 42, I Will Write It in Their Hearts"]
["2011-11-13","Lesson 43, The Shepherds of Israel","Chapter 45, The Millennium"]
["2011-11-20","Lesson 44, Every Thing Shall Live Whither the River Cometh","Chapter 46, The Final Judgment"]
["2011-11-27"]
["2011-12-04","Lesson 45, If I Perish, I Perish"]
["2011-12-11","Lesson 46, A Kingdom, Which Shall Never Be Destroyed","Chapter 47, Exaltation"]
["2011-12-18","Lesson 47, Let Us Rise Up and Build"]
["2011-12-25","Lesson 48, The Great and Dreadful Day of the Lord"]
["","  Do You Have Feedback about This Page?, "]

{"sheet":"Other Info","index":5,"n_rows":17,"n_cols":5,"rows_kept":17,"cut":false,"hidden":false,"merged":[]}
["Your Email Address:","mctrev@gmail.com"]
["Message:","Dear <firstname>,\r\n\r\nThis is just a quick reminder to do your reading this week in preparation for Sunday, <Date>. Here are links for all of the classes that you will be attending:\r\n\r\n<SundaySchool>\r\n<Priesthood>\r\n\r\nI hope you have a good week and look forward to seeing you on Sunday.\r\n\r\nBest regards,\r\n\r\nTrevor"]
["Skip these Dates","2011-02-06","2011-04-03","2011-10-02","2011-11-27"]
[null,2]
["Current Row",0]
[]
["General Conference",{"$f":"DATE('Lesson Number'!$A$1,4,1)+CHOOSE(WEEKDAY(DATE('Lesson Number'!$A$1,4,1)),7,6,5,4,3,2,1)","v":"2011-04-03"},{"$f":"DATE('Lesson Number'!$A$1,10,1)+CHOOSE(WEEKDAY(DATE('Lesson Number'!$A$1,10,1)),7,6,5,4,3,2,1)","v":"2011-10-02"}]
[]
[4,{"$f":"IF(WEEKDAY(DATE('Lesson Number'!$A$1,A9,1))=1,DATE('Lesson Number'!$A$1,A9,1),DATE('Lesson Number'!$A$1,A9,1)+CHOOSE(WEEKDAY(DATE('Lesson Number'!$A$1,A9,1)),7,6,5,4,3,2,1))","v":"2011-04-03"}]
[5,{"$f":"IF(WEEKDAY(DATE('Lesson Number'!$A$1,A10,1))=1,DATE('Lesson Number'!$A$1,A10,1),DATE('Lesson Number'!$A$1,A10,1)+CHOOSE(WEEKDAY(DATE('Lesson Number'!$A$1,A10,1)),7,6,5,4,3,2,1))","v":"2011-05-01"}]
[6,{"$f":"DATE('Lesson Number'!$A$1,A11,1)+CHOOSE(WEEKDAY(DATE('Lesson Number'!$A$1,A11,1)),0,7,6,5,4,3,2)-1","v":"2011-06-05"}]
[7,{"$f":"DATE('Lesson Number'!$A$1,A12,1)+CHOOSE(WEEKDAY(DATE('Lesson Number'!$A$1,A12,1)),0,7,6,5,4,3,2)-1","v":"2011-07-03"}]
[8,{"$f":"DATE('Lesson Number'!$A$1,A13,1)+CHOOSE(WEEKDAY(DATE('Lesson Number'!$A$1,A13,1)),0,7,6,5,4,3,2)-1","v":"2011-08-07"}]
[9,{"$f":"DATE('Lesson Number'!$A$1,A14,1)+CHOOSE(WEEKDAY(DATE('Lesson Number'!$A$1,A14,1)),0,7,6,5,4,3,2)-1","v":"2011-09-04"}]
[10,{"$f":"DATE('Lesson Number'!$A$1,A15,1)+CHOOSE(WEEKDAY(DATE('Lesson Number'!$A$1,A15,1)),0,7,6,5,4,3,2)-1","v":"2011-10-02"}]
[11,{"$f":"DATE('Lesson Number'!$A$1,A16,1)+CHOOSE(WEEKDAY(DATE('Lesson Number'!$A$1,A16,1)),0,7,6,5,4,3,2)-1","v":"2011-11-06"}]
[12,{"$f":"DATE('Lesson Number'!$A$1,A17,1)+CHOOSE(WEEKDAY(DATE('Lesson Number'!$A$1,A17,1)),0,7,6,5,4,3,2)-1","v":"2011-12-04"}]